bitfinex/quotes_BTCUSD_20250205
["timestamp","ask_amount","ask_price","bid_price","bid_amount"]
[1738728001864,0.04976408,98038.0,98037.0,0.00939554]
[1738728002082,0.14167918,98038.0,98037.0,0.00939554]
[1738728002228,0.14167918,98038.0,98037.0,0.00739554]
[1738728002770,0.14167918,98038.0,98037.0,0.00839554]
[1738728002906,0.01927818,98038.0,98037.0,0.00839554]
[1738728003107,0.01927818,98038.0,98037.0,0.00739554]
[1738728003312,0.14167918,98038.0,98037.0,0.00739554]
[1738728003716,0.14267918,98038.0,98037.0,0.00739554]
[1738728004417,0.02027818,98038.0,98037.0,0.00739554]
[1738728004622,0.01927818,98038.0,98037.0,0.00739554]
[1738728005257,0.01927818,98038.0,98037.0,0.15909829]
[1738728005453,0.01927818,98038.0,98037.0,0.26148335]
[1738728005669,0.01927818,98038.0,98037.0,0.26348335]
[1738728006492,0.01927818,98038.0,98037.0,0.26248335]
[1738728006629,0.0002245,98038.0,98037.0,0.96258335]
[1738728007030,0.0002245,98038.0,98037.0,0.96158335]
[1738728007538,0.0002245,98038.0,98037.0,0.96258335]
[1738728007748,0.0002245,98038.0,98037.0,0.93858335]
[1738728007877,0.0002245,98038.0,98037.0,0.93958335]
[1738728008509,0.00011135,98038.0,98037.0,0.94058335]
[1738728008908,0.00011135,98038.0,98037.0,0.93958335]
[1738728009326,0.00011135,98038.0,98037.0,0.94058335]
[1738728010564,0.00011135,98038.0,98037.0,1.11358335]
[1738728010725,0.00011135,98038.0,98037.0,1.24308335]
[1738728011081,0.00011135,98038.0,98037.0,1.27425102]
[1738728011396,0.00011135,98038.0,98037.0,1.24308335]
[1738728011797,0.00011135,98038.0,98037.0,1.24208335]
[1738728012018,0.00011135,98038.0,98037.0,1.24308335]
[1738728012640,0.00011135,98038.0,98037.0,1.24208335]
[1738728012994,5.125e-05,98040.0,98037.0,0.94058335]
[1738728013169,5.125e-05,98040.0,98039.0,0.1224]
[1738728013491,5.125e-05,98040.0,98039.0,0.22478506]
[1738728014290,5.125e-05,98040.0,98039.0,0.22578506]
[1738728014484,5.125e-05,98040.0,98039.0,0.24878506]
[1738728014686,5.125e-05,98040.0,98039.0,0.24778506]
[1738728014899,5.125e-05,98040.0,98039.0,0.95822327]
[1738728015105,0.00013381,98044.0,98043.0,0.122395]
[1738728015448,0.00013381,98044.0,98043.0,0.22478006]
[1738728016210,7.35e-05,98049.0,98048.0,0.122389]
[1738728016430,7.35e-05,98049.0,98048.0,0.22477406]
[1738728016674,7.35e-05,98049.0,98048.0,0.29620877]
[1738728017015,7.35e-05,98049.0,98048.0,0.29577071]
[1738728017571,9.32e-05,98055.0,98048.0,0.17381977]
[1738728017745,9.32e-05,98055.0,98054.0,0.122381]
[1738728017960,9.32e-05,98055.0,98054.0,0.22476606]
[1738728018154,9.32e-05,98055.0,98054.0,0.23202424]
[1738728019707,3.311e-05,98063.0,98060.0,0.122373]
[1738728020125,3.311e-05,98063.0,98061.0,0.00725858]
[1738728020594,3.311e-05,98063.0,98060.0,0.122373]
[1738728020793,3.311e-05,98063.0,98062.0,0.00725825]
[1738728020947,3.311e-05,98063.0,98061.0,0.00725865]
[1738728021147,0.075,98065.0,98062.0,0.00725825]
[1738728021148,0.07466397,98065.0,98062.0,0.00725825]
[1738728021553,0.07466397,98065.0,98053.0,0.4415934]
[1738728021554,0.122372,98061.0,98060.0,0.001]
[1738728021749,0.170072,98061.0,98060.0,0.001]
[1738728022334,0.122376,98058.0,98053.0,0.3298]
[1738728022714,0.210865,98061.0,98053.0,0.3298]
[1738728022715,0.12238,98055.0,98054.0,0.0072619]
[1738728022925,0.12209545,98055.0,98054.0,0.0072619]
[1738728023129,0.14114244,98055.0,98054.0,0.0072619]
[1738728023333,0.14114244,98055.0,98037.0,0.0001068]
[1738728023334,0.0486,98054.0,98037.0,0.0001068]
[1738728023543,0.122401,98038.0,98037.0,0.0001068]
[1738728024008,0.172101,98038.0,98037.0,0.0001068]
[1738728024167,0.250301,98038.0,98037.0,0.0001068]
[1738728024488,0.24990217,98038.0,98037.0,0.0001068]
[1738728024729,0.26894916,98038.0,98037.0,0.0001068]
[1738728025516,0.27094916,98038.0,98037.0,0.0001068]
[1738728025717,0.27194916,98038.0,98037.0,0.0001068]
[1738728026062,0.27185818,98038.0,98037.0,0.0001068]
[1738728026551,0.42180791,98038.0,98037.0,0.0001068]
[1738728027292,0.46264657,98038.0,98037.0,0.0001068]
[1738728027632,0.46164657,98038.0,98037.0,0.0001068]
[1738728027779,0.46064657,98038.0,98037.0,0.0001068]
[1738728027984,0.46364657,98038.0,98037.0,0.0001068]
[1738728028419,0.46359057,98038.0,98037.0,0.0001068]
[1738728028797,0.55513327,98038.0,98037.0,0.0001068]
[1738728030615,0.46342026,98038.0,98037.0,0.0001068]
[1738728030961,0.46313563,98038.0,98037.0,0.0001068]
[1738728031172,0.34178565,98038.0,98037.0,0.0001068]
[1738728031379,0.46418665,98038.0,98037.0,0.0001068]
[1738728036235,0.43371609,98038.0,98037.0,0.0001068]
[1738728038050,0.49490609,98038.0,98037.0,0.0001068]
[1738728038284,0.02304699,98038.0,98037.0,0.0001068]
[1738728038434,0.02304699,98038.0,98037.0,0.00738878]
[1738728038642,0.02304699,98038.0,98037.0,0.0001068]
[1738728039033,0.14544799,98038.0,98037.0,0.00738878]
[1738728039287,0.02004699,98038.0,98037.0,0.0001068]
[1738728039570,0.001,98038.0,98037.0,0.00838878]
[1738728039702,0.1323619,98042.0,98037.0,0.0011068]
[1738728040064,0.0755,98045.0,98037.0,0.0021068]
[1738728040264,0.122401,98038.0,98037.0,0.0021068]
[1738728040463,0.122401,98038.0,98037.0,0.0011068]
[1738728041428,0.203701,98038.0,98037.0,0.0021068]
[1738728041629,0.2038078,98038.0,98037.0,0.0021068]
[1738728042215,0.2038078,98038.0,98037.0,0.0011068]
[1738728042216,0.22282079,98038.0,98037.0,0.0011068]
[1738728042387,0.22282079,98038.0,98037.0,0.0021068]
[1738728042604,0.22282079,98038.0,98037.0,0.0011068]
[1738728042752,0.22282079,98038.0,98037.0,0.0001068]
[1738728042960,0.22482079,98038.0,98037.0,0.0001068]
[1738728043162,0.22382079,98038.0,98037.0,0.0001068]
[1738728043586,0.22282079,98038.0,98037.0,0.0001068]
[1738728043810,0.54892209,98038.0,98037.0,0.0001068]
[1738728044004,0.65230715,98038.0,98037.0,0.0001068]
[1738728044422,0.68172794,98038.0,98037.0,0.0001068]
[1738728044795,0.68372794,98038.0,98037.0,0.0001068]
[1738728045397,0.68072794,98038.0,98037.0,0.0001068]
[1738728045739,0.68572794,98038.0,98037.0,0.0001068]
[1738728046188,0.68372794,98038.0,98037.0,0.0001068]
[1738728046399,0.68572794,98038.0,98037.0,0.0001068]
[1738728048099,0.62051664,98038.0,98037.0,0.0001068]
[1738728057869,0.51813158,98038.0,98037.0,0.0001068]
[1738728058591,0.32894158,98038.0,98037.0,0.0001068]
[1738728058735,0.32694158,98038.0,98037.0,0.0001068]
[1738728058929,0.17794158,98038.0,98037.0,0.0001068]
[1738728059351,0.17194158,98038.0,98037.0,0.0001068]
[1738728059553,0.17494158,98038.0,98037.0,0.0001068]
[1738728059795,0.17194158,98038.0,98037.0,0.0001068]
[1738728061401,0.45885744,98038.0,98037.0,0.0001068]
[1738728061571,0.6706325,98038.0,98037.0,0.0001068]
[1738728062845,0.6756325,98038.0,98037.0,0.0001068]
[1738728063046,0.6706325,98038.0,98037.0,0.0001068]
[1738728063389,0.6766325,98038.0,98037.0,0.0011068]
[1738728063594,0.6886325,98038.0,98037.0,0.0011068]
[1738728064012,0.46114158,98038.0,98037.0,0.0011068]
[1738728064200,0.62471664,98038.0,98037.0,0.0011068]
[1738728065137,0.63471664,98038.0,98037.0,0.0011068]
[1738728065885,0.65771664,98038.0,98037.0,0.0011068]
[1738728067554,0.06119,98030.0,98018.0,0.0001068]
[1738728067713,0.173,98037.0,98018.0,0.0001068]
[1738728067714,0.333613,98020.0,98018.0,0.0001068]
[1738728069080,0.38304678,98020.0,98018.0,0.0001068]
[1738728069491,0.38404678,98020.0,98018.0,0.0001068]
[1738728069887,0.38704678,98020.0,98018.0,0.0001068]
[1738728070090,0.41556208,98020.0,98018.0,0.0001068]
[1738728070584,0.46096208,98020.0,98018.0,0.0001068]
[1738728070794,0.56334714,98020.0,98018.0,0.0001068]
[1738728070998,0.67924714,98020.0,98018.0,0.0001068]
[1738728071947,0.67624714,98020.0,98018.0,0.0001068]
[1738728072178,0.67924714,98020.0,98018.0,0.0001068]
[1738728072382,0.691997,98020.0,98018.0,0.0001068]
[1738728072597,0.692997,98020.0,98018.0,0.0001068]
[1738728072998,0.69824459,98020.0,98018.0,0.0001068]
[1738728073212,0.63805459,98020.0,98018.0,0.0001068]
[1738728073378,0.64205459,98020.0,98018.0,0.0001068]
[1738728074074,0.258642,98005.0,98004.0,0.0001068]
[1738728074332,0.35102706,98005.0,98004.0,0.0001068]
[1738728074714,0.4671379,98005.0,98004.0,0.0001068]
[1738728075326,0.4681379,98005.0,98004.0,0.0001068]
[1738728075500,0.4781379,98005.0,98004.0,0.0001068]
[1738728075701,0.48854224,98005.0,98004.0,0.0001068]
[1738728076303,0.48954224,98005.0,98004.0,0.0001068]
[1738728076517,0.51154224,98005.0,98004.0,0.0001068]
[1738728076684,0.47754224,98005.0,98004.0,0.0001068]
[1738728076891,0.42861504,98005.0,98004.0,0.0001068]
[1738728077451,0.34541504,98005.0,98004.0,0.0001068]
[1738728077630,0.35141504,98005.0,98004.0,0.0001068]
[1738728077771,0.34541504,98005.0,98004.0,0.0001068]
[1738728077971,0.37328674,98005.0,98004.0,0.0001068]
[1738728078375,0.37228674,98005.0,98004.0,0.0001068]
[1738728078591,0.37428674,98005.0,98004.0,0.0001068]
[1738728079841,0.37928674,98005.0,98004.0,0.0001068]
[1738728080490,0.38528674,98005.0,98004.0,0.0001068]
[1738728080639,0.37428674,98005.0,98004.0,0.0001068]
[1738728080839,0.37228674,98005.0,98004.0,0.0001068]
[1738728081034,0.37728674,98005.0,98004.0,0.0001068]
[1738728081232,0.37428674,98005.0,98004.0,0.0001068]
[1738728082225,0.37628674,98005.0,98004.0,0.0001068]
[1738728082427,0.22749853,98005.0,98004.0,0.0001068]
[1738728082778,0.10505653,98005.0,98004.0,0.0001068]
[1738728082983,0.10305653,98005.0,98004.0,0.0001068]
[1738728083334,0.09765219,98005.0,98004.0,0.0001068]
[1738728083540,0.09265219,98005.0,98004.0,0.0828068]
[1738728083766,0.09265219,98005.0,98004.0,0.13953015]
[1738728083947,0.01901299,98005.0,98004.0,0.13953015]
[1738728084365,0.01901299,98005.0,98004.0,0.24191521]
[1738728085090,0.09137564,98009.0,98005.0,0.163256]
[1738728085227,0.09137564,98009.0,98008.0,0.122438]
[1738728085413,0.09137564,98009.0,98008.0,0.22482306]
[1738728085611,0.09137564,98009.0,98008.0,0.23180765]
[1738728086657,0.09137564,98009.0,98008.0,0.00698459]
[1738728086872,0.09137564,98009.0,98008.0,0.002]
[1738728087072,0.09137564,98009.0,98008.0,0.00898459]
[1738728087460,0.122434,98012.0,98008.0,0.00798459]
[1738728087879,0.15101239,98012.0,98008.0,0.00898459]
[1738728088099,0.12243,98015.0,98008.0,0.00898459]
[1738728088302,0.01904169,98011.0,98008.0,0.00998459]
[1738728088503,0.01904169,98011.0,98009.0,0.122437]
[1738728088670,0.01904169,98011.0,98009.0,0.29267199]
[1738728089843,0.0001069,98018.0,98009.0,0.00698499]
[1738728090045,0.0001069,98018.0,98010.0,0.163248]
[1738728090360,0.0001069,98018.0,98014.0,0.12243]
[1738728090579,0.0001069,98018.0,98016.0,0.122428]
[1738728090876,0.01904983,98017.0,98015.0,0.122429]
[1738728092115,0.01904983,98016.0,98015.0,0.122429]
[1738728092517,0.01904983,98016.0,98012.0,0.163244]
[1738728092663,0.01904983,98016.0,98012.0,0.122433]
[1738728092866,0.01904983,98016.0,98015.0,0.001]
[1738728093058,0.08023983,98016.0,98013.0,0.122432]
[1738728093274,0.01904983,98016.0,98005.0,0.1117934]
[1738728093482,0.01904983,98016.0,98015.0,0.12343]
[1738728093711,0.0001069,98018.0,98017.0,0.122427]
[1738728094917,0.0001069,98018.0,98017.0,0.22481206]
[1738728096982,0.0001069,98018.0,98017.0,0.22681206]
[1738728097684,0.0001069,98018.0,98017.0,0.22781206]
[1738728097885,0.0001069,98018.0,98017.0,0.23477811]
[1738728103859,0.0001069,98018.0,98017.0,0.42574792]
[1738728104971,0.0001069,98018.0,98017.0,0.42474792]
[1738728105178,0.0001069,98018.0,98017.0,0.42574792]
[1738728105586,0.0001069,98018.0,98017.0,0.42474792]
[1738728105995,0.0001069,98018.0,98017.0,0.42274792]
[1738728106613,0.0001069,98018.0,98017.0,0.42474792]
[1738728106820,0.0001069,98018.0,98017.0,0.42274792]
[1738728107024,0.0001069,98018.0,98017.0,0.78036543]
[1738728107331,0.0001069,98018.0,98017.0,0.78236543]
[1738728107494,0.0001069,98018.0,98017.0,0.78336543]
[1738728108037,0.0001069,98018.0,98017.0,0.93236543]
[1738728108450,9e-07,98018.0,98017.0,0.96636543]
[1738728108649,9e-07,98018.0,98017.0,0.99751845]
[1738728108880,9e-07,98018.0,98017.0,0.99451845]
[1738728109003,9e-07,98018.0,98017.0,0.99751845]
[1738728109202,9e-07,98018.0,98017.0,0.99551845]
[1738728109714,9e-07,98018.0,98017.0,0.99751845]
[1738728109915,9e-07,98018.0,98017.0,0.99551845]
[1738728110111,9e-07,98018.0,98017.0,0.99751845]
[1738728110478,9e-07,98018.0,98017.0,0.99451845]
[1738728110820,9e-07,98018.0,98017.0,0.99551845]
[1738728111225,9e-07,98018.0,98017.0,0.99451845]
[1738728111467,9e-07,98018.0,98017.0,0.99674273]
[1738728111647,9e-07,98018.0,98017.0,0.99774273]
[1738728112102,9e-07,98018.0,98017.0,1.01742099]
[1738728112478,9e-07,98018.0,98017.0,1.01842099]
[1738728112692,9e-07,98018.0,98017.0,1.01642099]
[1738728112884,9e-07,98018.0,98017.0,1.02642099]
[1738728113202,0.0001068,98038.0,98037.0,0.375502]
[1738728113398,0.0001068,98038.0,98037.0,0.86412308]
[1738728113578,0.0001068,98038.0,98037.0,0.87105781]
[1738728114929,0.0001068,98038.0,98037.0,0.87205781]
[1738728115490,1.579e-05,98038.0,98037.0,0.87205781]
[1738728115887,1.579e-05,98038.0,98037.0,0.87405781]
[1738728117046,1.579e-05,98038.0,98037.0,0.89705781]
[1738728119318,1.579e-05,98038.0,98037.0,0.86405781]
[1738728119520,1.579e-05,98038.0,98037.0,0.77095781]
[1738728119771,1.579e-05,98038.0,98037.0,0.58202179]
[1738728120539,1.579e-05,98038.0,98037.0,0.23372179]
[1738728120697,1.579e-05,98038.0,98037.0,0.23272179]
[1738728121256,1.579e-05,98038.0,98037.0,0.23372179]
[1738728121444,1.579e-05,98038.0,98037.0,0.23472179]
[1738728121860,1.579e-05,98038.0,98037.0,0.29083547]
[1738728122031,1.579e-05,98038.0,98037.0,0.28983547]
[1738728122234,1.579e-05,98038.0,98037.0,0.29083547]
[1738728122435,1.579e-05,98038.0,98037.0,0.28883547]
[1738728122816,1.579e-05,98038.0,98037.0,0.29083547]
[1738728123022,1.579e-05,98038.0,98037.0,0.28883547]
[1738728123197,1.579e-05,98038.0,98037.0,0.29083547]
[1738728123609,1.579e-05,98038.0,98037.0,0.28983547]
[1738728123859,1.579e-05,98038.0,98037.0,0.23372179]
[1738728124055,1.579e-05,98038.0,98037.0,0.23472179]
[1738728124662,1.579e-05,98038.0,98037.0,0.23372179]
[1738728125058,1.579e-05,98038.0,98037.0,0.23472179]
[1738728125671,1.579e-05,98038.0,98037.0,0.13033673]
[1738728125875,1.579e-05,98038.0,98037.0,0.00993473]
[1738728126230,0.04861579,98038.0,98037.0,0.003]
[1738728126611,0.04861579,98038.0,98037.0,0.00993992]
[1738728126983,0.04861579,98038.0,98037.0,0.00893992]
[1738728127107,0.04861579,98038.0,98037.0,0.00793992]
[1738728127320,0.04861579,98038.0,98037.0,0.13034192]
[1738728127525,0.04861579,98038.0,98037.0,0.13134192]
[1738728127946,0.04861579,98038.0,98037.0,0.13234192]
[1738728128731,0.04861579,98038.0,98037.0,0.13034192]
[1738728129149,0.04861579,98038.0,98037.0,0.13234192]
[1738728129349,0.04861579,98038.0,98037.0,0.13034192]
[1738728129557,0.04861579,98038.0,98037.0,0.13234192]
[1738728130260,0.17101679,98038.0,98037.0,0.00993992]
[1738728130491,0.04861579,98038.0,98037.0,0.002]
[1738728130951,0.17101679,98038.0,98037.0,0.00932916]
[1738728131190,0.17101679,98038.0,98037.0,0.003]
[1738728131414,0.17101679,98038.0,98037.0,0.00938282]
[1738728131665,0.17101679,98038.0,98037.0,0.01038282]
[1738728132533,0.04861579,98038.0,98037.0,0.01038282]
[1738728132780,0.04861579,98038.0,98037.0,0.13278482]
[1738728133042,0.04861579,98038.0,98037.0,0.1623847]
[1738728133307,1.579e-05,98038.0,98037.0,0.26476976]
[1738728133548,1.579e-05,98038.0,98037.0,0.41476976]
[1738728134061,1.579e-05,98038.0,98037.0,0.41276976]
[1738728134287,1.579e-05,98038.0,98037.0,0.41199404]
[1738728134517,1.579e-05,98038.0,98037.0,0.41299404]
[1738728134934,1.579e-05,98038.0,98037.0,0.41199404]
[1738728135408,1.579e-05,98038.0,98037.0,0.41299404]
[1738728135645,1.579e-05,98038.0,98037.0,0.41499404]
[1738728135885,1.579e-05,98038.0,98037.0,0.41299404]
[1738728136128,1.579e-05,98038.0,98037.0,0.41499404]
[1738728136366,1.579e-05,98038.0,98037.0,0.77229404]
[1738728137579,1.579e-05,98038.0,98037.0,0.85159404]
[1738728138519,1.579e-05,98038.0,98037.0,0.87246132]
[1738728141075,1.579e-05,98038.0,98037.0,0.89546132]
[1738728141407,1.579e-05,98038.0,98037.0,0.98602678]
[1738728142557,1.579e-05,98038.0,98037.0,0.98402678]
[1738728142747,1.579e-05,98038.0,98037.0,0.98602678]
[1738728142930,1.579e-05,98038.0,98037.0,0.98302678]
[1738728143313,1.579e-05,98038.0,98037.0,0.98502678]
[1738728143539,5.9e-07,98055.0,98054.0,0.282381]
[1738728143715,5.9e-07,98055.0,98054.0,0.47680542]
[1738728143914,5.9e-07,98055.0,98054.0,0.48414389]
[1738728144850,5.9e-07,98055.0,98054.0,0.47414389]
[1738728145013,5.9e-07,98055.0,98054.0,0.44297843]
[1738728145724,5.9e-07,98055.0,98054.0,0.79127843]
[1738728146022,5.9e-07,98055.0,98054.0,0.80053413]
[1738728146241,5.9e-07,98055.0,98054.0,0.80153413]
[1738728147167,5.9e-07,98055.0,98054.0,0.80053413]
[1738728147362,5.9e-07,98055.0,98054.0,0.80153413]
[1738728147843,5.9e-07,98055.0,98054.0,0.91683413]
[1738728148257,5.9e-07,98055.0,98054.0,0.94796252]
[1738728148484,5.9e-07,98055.0,98054.0,0.96862916]
[1738728148711,5.9e-07,98055.0,98054.0,0.96762916]
[1738728149124,5.9e-07,98055.0,98054.0,0.96862916]
[1738728149463,5.9e-07,98055.0,98054.0,0.96762916]
[1738728149666,5.9e-07,98055.0,98054.0,0.96862916]
[1738728149874,5.9e-07,98055.0,98054.0,1.02472916]
[1738728150609,5.9e-07,98055.0,98054.0,1.02372916]
[1738728150817,5.9e-07,98055.0,98054.0,1.02472916]
[1738728151117,5.9e-07,98055.0,98054.0,1.04363382]
[1738728151947,5.9e-07,98055.0,98054.0,1.02372916]
[1738728152301,5.9e-07,98055.0,98054.0,1.02472916]
[1738728153663,5.9e-07,98055.0,98054.0,1.02228916]
[1738728153855,5.9e-07,98055.0,98054.0,0.89388916]
[1738728154252,5.9e-07,98055.0,98054.0,0.86276077]
[1738728154637,5.9e-07,98055.0,98054.0,1.19256077]
[1738728155807,5.9e-07,98055.0,98054.0,1.18256077]
[1738728156016,5.9e-07,98055.0,98054.0,1.19256077]
[1738728156368,5.9e-07,98055.0,98054.0,1.18256077]
[1738728156611,5.9e-07,98055.0,98054.0,1.19256077]
[1738728157098,5.9e-07,98055.0,98054.0,1.2114589]
[1738728157301,5.9e-07,98055.0,98054.0,1.1708989]
[1738728157536,5.9e-07,98055.0,98054.0,1.0208989]
[1738728157739,5.9e-07,98055.0,98054.0,1.0308989]
[1738728158535,5.9e-07,98055.0,98054.0,1.1808989]
[1738728158735,5.9e-07,98055.0,98054.0,1.2028989]
[1738728158936,5.9e-07,98055.0,98054.0,1.2855989]
[1738728159237,0.05892509,98085.0,98084.0,0.272344]
[1738728159437,0.05892509,98085.0,98084.0,0.74807716]
[1738728159640,0.05892509,98085.0,98084.0,0.75537131]
[1738728159885,0.05892509,98085.0,98084.0,0.77426944]
[1738728161315,0.05892509,98085.0,98084.0,0.77382354]
[1738728162570,0.05892509,98085.0,98084.0,0.77482354]
[1738728165556,0.05883374,98085.0,98084.0,0.77482354]
[1738728169809,0.05883374,98085.0,98084.0,0.77382354]
[1738728170011,0.05883374,98085.0,98084.0,0.75592541]
[1738728170164,0.05883374,98085.0,98084.0,0.75614969]
[1738728170669,0.05894054,98085.0,98084.0,0.75614969]
[1738728171962,0.05894054,98085.0,98084.0,0.71260159]
[1738728173073,0.05894054,98085.0,98084.0,0.61021653]
[1738728174484,0.05894054,98085.0,98084.0,0.71260159]
[1738728174846,0.05894054,98085.0,98084.0,0.71160159]
[1738728175944,0.05894054,98085.0,98084.0,0.71260159]
[1738728176154,0.05894054,98085.0,98084.0,0.71160159]
[1738728176560,0.05894054,98085.0,98084.0,0.46021653]
[1738728176767,0.05894054,98085.0,98084.0,0.45921653]
[1738728178379,0.05894054,98085.0,98084.0,0.53417556]
[1738728178597,0.05894054,98085.0,98084.0,0.53317556]
[1738728179112,0.05894054,98085.0,98084.0,0.53417556]
[1738728179277,0.05894054,98085.0,98084.0,0.53317556]
[1738728179485,0.05894054,98085.0,98084.0,0.53417556]
[1738728179709,0.05894054,98085.0,98084.0,0.63656062]
[1738728181627,0.05894054,98085.0,98084.0,0.56260159]
[1738728184871,0.05894054,98085.0,98084.0,0.46021653]
[1738728185293,0.10864054,98085.0,98084.0,0.46021653]
[1738728185746,0.10864054,98085.0,98084.0,0.45921653]
[1738728186091,0.10864054,98085.0,98084.0,0.46021653]
[1738728186999,0.10864054,98085.0,98084.0,0.45921653]
[1738728187206,0.10864054,98085.0,98084.0,0.12941653]
[1738728188401,0.10864054,98085.0,98084.0,0.13041653]
[1738728188534,0.10864054,98085.0,98084.0,0.12941653]
[1738728189012,0.10864054,98085.0,98084.0,0.13041653]
[1738728192760,0.0001068,98085.0,98084.0,0.29478274]
[1738728193606,0.0001068,98085.0,98084.0,0.38280159]
[1738728194028,0.0001068,98085.0,98084.0,1.13570159]
[1738728194319,0.0001068,98085.0,98084.0,1.16699813]
[1738728194724,0.0001068,98085.0,98084.0,1.16599813]
[1738728195130,0.0001068,98085.0,98084.0,1.16699813]
[1738728195340,0.0001068,98085.0,98084.0,1.26849285]
[1738728195761,0.0001068,98085.0,98084.0,1.26949285]
[1738728196094,8e-07,98085.0,98084.0,1.27949285]
[1738728196443,8e-07,98085.0,98084.0,1.28966331]
[1738728198085,8e-07,98085.0,98084.0,1.28866331]
[1738728198280,8e-07,98085.0,98084.0,1.28966331]
[1738728199399,8e-07,98085.0,98084.0,1.29016361]
[1738728200394,0.00022428,98092.0,98091.0,0.272335]
[1738728200577,0.00022428,98092.0,98091.0,0.40705827]
[1738728200780,0.00022428,98092.0,98091.0,0.41432937]
[1738728200991,0.00022428,98092.0,98091.0,0.44556387]
[1738728201544,0.00022428,98092.0,98091.0,0.41532937]
[1738728203297,0.00022428,98092.0,98091.0,1.09242937]
[1738728203459,0.00022428,98092.0,98091.0,1.12365277]
[1738728204323,0.00022428,98092.0,98091.0,1.09242937]
[1738728205354,0.00022428,98092.0,98091.0,1.12362517]
[1738728207632,7.8e-07,98098.0,98097.0,0.272327]
[1738728207829,7.8e-07,98098.0,98097.0,0.47720678]
[1738728208126,7.8e-07,98098.0,98097.0,0.48446832]
[1738728208963,7.8e-07,98098.0,98097.0,0.48546832]
[1738728209165,7.8e-07,98098.0,98097.0,0.48446832]
[1738728209565,7.8e-07,98098.0,98097.0,0.48546832]
[1738728209759,7.8e-07,98098.0,98097.0,0.48446832]
[1738728210099,7.8e-07,98098.0,98097.0,0.50746832]
[1738728210233,7.8e-07,98098.0,98097.0,0.51746832]
[1738728211808,7.8e-07,98098.0,98097.0,0.51846832]
[1738728211964,7.8e-07,98098.0,98097.0,0.50846832]
[1738728212196,7.8e-07,98098.0,98097.0,0.51746832]
[1738728212583,7.8e-07,98098.0,98097.0,0.51846832]
[1738728212984,7.8e-07,98104.0,98103.0,0.35802]
[1738728213265,7.8e-07,98104.0,98103.0,0.51574327]
[1738728213468,7.8e-07,98104.0,98103.0,0.55414466]
[1738728214342,7.8e-07,98104.0,98103.0,0.54414466]
[1738728214533,7.8e-07,98104.0,98103.0,0.46844466]
[1738728214932,7.8e-07,98104.0,98103.0,0.4372922]
[1738728215133,7.8e-07,98104.0,98103.0,0.44745103]
[1738728215345,7.8e-07,98104.0,98103.0,0.42545103]
[1738728215548,0.04930078,98104.0,98103.0,0.24311282]
[1738728216711,0.04930078,98104.0,98103.0,0.24211282]
[1738728216945,0.04930078,98104.0,98103.0,0.24311282]
[1738728217319,0.04930078,98104.0,98103.0,0.23295399]
[1738728217536,0.12630078,98104.0,98103.0,0.32017929]
[1738728218359,0.12630078,98104.0,98103.0,0.31917929]
[1738728218698,0.12630078,98104.0,98103.0,0.32017929]
[1738728218858,0.12630078,98104.0,98103.0,0.31917929]
[1738728219194,0.12630078,98104.0,98103.0,0.32017929]
[1738728219939,0.12630078,98104.0,98103.0,0.64997929]
[1738728220676,0.12630078,98104.0,98103.0,0.56275399]
[1738728221439,0.12230078,98104.0,98103.0,0.56275399]
[1738728222103,0.12230078,98104.0,98103.0,0.56175399]
[1738728222351,0.12230078,98104.0,98103.0,0.56275399]
[1738728226005,0.12230078,98104.0,98103.0,0.56175399]
[1738728226551,0.12230078,98104.0,98103.0,0.56275399]
[1738728226898,0.12230078,98104.0,98103.0,0.46036893]
[1738728227737,0.12230078,98104.0,98103.0,0.33804893]
[1738728228296,0.12230078,98104.0,98103.0,0.46036893]
[1738728228498,0.12230078,98104.0,98103.0,0.53904773]
[1738728228978,0.12230078,98104.0,98103.0,0.53804773]
[1738728229182,0.12230078,98104.0,98103.0,0.45936893]
[1738728229335,0.12230078,98104.0,98103.0,0.33804893]
[1738728229497,0.12230078,98104.0,98103.0,0.33704893]
[1738728229953,0.12240748,98104.0,98103.0,0.33704893]
[1738728230365,0.12240748,98104.0,98103.0,0.46036893]
[1738728231760,0.12240748,98104.0,98103.0,0.13056893]
[1738728240556,0.12240748,98104.0,98103.0,0.00824893]
[1738728240934,0.12240748,98104.0,98103.0,0.001]
[1738728241140,0.12240748,98104.0,98103.0,0.00122407]
[1738728241997,0.12240748,98104.0,98103.0,0.00850619]
[1738728242221,0.12240748,98104.0,98103.0,0.00022407]
[1738728242383,0.12240748,98104.0,98103.0,0.00122407]
[1738728242826,0.12240748,98104.0,98103.0,0.00022407]
[1738728243275,0.18456748,98104.0,98103.0,0.00022407]
[1738728243614,0.18456748,98104.0,98103.0,0.00750816]
[1738728243823,0.18456748,98104.0,98103.0,0.13962749]
[1738728243824,0.12440748,98104.0,98103.0,0.13962749]
[1738728244028,0.12440748,98104.0,98103.0,0.12982816]
[1738728244660,0.12340748,98104.0,98103.0,0.12982816]
[1738728244878,0.12240748,98104.0,98103.0,0.12982816]
[1738728245280,0.12240748,98104.0,98103.0,0.13082816]
[1738728245540,0.12240748,98104.0,98103.0,0.12982816]
[1738728246081,0.12240748,98104.0,98103.0,0.13082816]
[1738728247402,0.12240748,98104.0,98103.0,0.17655308]
[1738728247990,0.0001067,98104.0,98103.0,0.7599613]
[1738728248191,0.0001067,98104.0,98103.0,0.75873814]
[1738728249175,0.0001067,98104.0,98103.0,0.75773814]
[1738728249579,0.0001067,98104.0,98103.0,0.75873814]
[1738728249778,0.0001067,98104.0,98103.0,0.75773814]
[1738728250195,0.0001067,98104.0,98103.0,0.75873814]
[1738728250390,0.0001067,98104.0,98103.0,0.75773814]
[1738728250604,0.0001067,98104.0,98103.0,0.56201322]
[1738728251832,0.0001067,98104.0,98103.0,0.56301322]
[1738728251983,0.0001067,98104.0,98103.0,0.46062816]
[1738728252184,0.0001067,98104.0,98103.0,0.45962816]
[1738728252538,0.0001067,98104.0,98103.0,0.46062816]
[1738728252959,0.0797067,98104.0,98103.0,0.46062816]
[1738728253691,0.0797067,98104.0,98103.0,0.00850816]
[1738728253899,0.0797067,98104.0,98103.0,0.00750816]
[1738728254013,0.0797067,98104.0,98103.0,0.00022407]
[1738728254214,0.0797067,98104.0,98103.0,0.00750331]
[1738728254436,0.0797067,98104.0,98103.0,0.00022407]
[1738728254645,0.0797067,98104.0,98103.0,0.00750331]
[1738728254844,0.0797067,98104.0,98103.0,0.00022407]
[1738728255176,0.0797067,98104.0,98103.0,0.00850763]
[1738728255517,0.0797067,98104.0,98103.0,0.00750763]
[1738728255780,0.0797067,98104.0,98103.0,0.00850763]
[1738728256001,0.0797067,98104.0,98103.0,0.00122407]
[1738728256410,0.0797067,98104.0,98103.0,0.00850906]
[1738728258162,0.0001067,98104.0,98103.0,0.14801227]
[1738728258358,0.0001067,98104.0,98103.0,0.25039733]
[1738728258565,0.0001067,98104.0,98103.0,0.57919733]
[1738728258758,0.0001067,98104.0,98103.0,0.72919733]
[1738728259586,0.0001067,98104.0,98103.0,0.73019733]
[1738728259741,0.0001067,98104.0,98103.0,0.72919733]
[1738728259935,0.0001067,98104.0,98103.0,0.73019733]
[1738728274352,0.0001067,98104.0,98103.0,0.73129733]
[1738728279469,0.0001067,98104.0,98103.0,0.56411412]
[1738728284125,0.0497,98107.0,98106.0,0.122316]
[1738728284347,0.0497,98107.0,98106.0,0.55450106]